[Event "Titled Tuesday Blitz December 27 Late 2022"]
[White "Ozdemir, Serhan Berat"]
[Black "Aung Thant Zin"]
[WhiteFideId "6374611"]
[BlackFideId "13000063"]
[WhiteElo "2223"]
[BlackElo "2268"]
[Result "1-0"]
[Round "01"]
[TimeControl "180+2"]
[Date "2022.12.27"]
[WhiteClock "0:00:10"]
[BlackClock "0:00:06"]

1. e4 {[%clk 0:02:55]}  c5 {[%clk 0:02:58]} 2. Nf3 {[%clk 0:02:54]}  Nc6 {[%clk 0:02:55]} 3. Bb5 {[%clk 0:02:54]}  e6 {[%clk 0:02:55]} 4. O-O {[%clk 0:02:51]}  Nge7 {[%clk 0:02:54]} 5. d4 {[%clk 0:02:52]}  cxd4 {[%clk 0:02:52]} 6. Nxd4 {[%clk 0:02:52]}  a6 {[%clk 0:02:53]} 7. Be2 {[%clk 0:02:51]}  Ng6 {[%clk 0:02:51]} 8. Be3 {[%clk 0:02:18]}  Be7 {[%clk 0:02:35]} 9. Nc3 {[%clk 0:02:07]}  O-O {[%clk 0:02:34]} 10. f4 {[%clk 0:02:06]}  b5 {[%clk 0:02:00]} 11. Nxc6 {[%clk 0:01:53]}  dxc6 {[%clk 0:02:00]} 12. Qxd8 {[%clk 0:01:53]}  Rxd8 {[%clk 0:01:59]} 13. e5 {[%clk 0:01:54]}  c5 {[%clk 0:01:39]} 14. Bf3 {[%clk 0:01:52]}  Rb8 {[%clk 0:01:38]} 15. Rad1 {[%clk 0:01:46]}  Bd7 {[%clk 0:01:30]} 16. Ne4 {[%clk 0:01:39]}  c4 {[%clk 0:01:13]} 17. Nd6 {[%clk 0:01:31]}  Bxd6 {[%clk 0:00:46]} 18. Rxd6 {[%clk 0:01:32]}  Be8 {[%clk 0:00:46]} 19. Rxa6 {[%clk 0:01:22]}  Ne7 {[%clk 0:00:42]} 20. Rd6 {[%clk 0:00:23]}  Nd5 {[%clk 0:00:29]} 21. Bxd5 {[%clk 0:00:22]}  exd5 {[%clk 0:00:29]} 22. Bc5 {[%clk 0:00:20]}  Rxd6 {[%clk 0:00:27]} 23. Bxd6 {[%clk 0:00:21]}  Rc8 {[%clk 0:00:27]} 24. c3 {[%clk 0:00:20]}  Bd7 {[%clk 0:00:24]} 25. Kf2 {[%clk 0:00:21]}  Bf5 {[%clk 0:00:23]} 26. Ke3 {[%clk 0:00:21]}  Ra8 {[%clk 0:00:20]} 27. a3 {[%clk 0:00:21]}  Be4 {[%clk 0:00:18]} 28. g4 {[%clk 0:00:21]}  g6 {[%clk 0:00:18]} 29. Kd4 {[%clk 0:00:20]}  Bg2 {[%clk 0:00:13]} 30. Rf2 {[%clk 0:00:19]}  Be4 {[%clk 0:00:13]} 31. h4 {[%clk 0:00:18]}  h5 {[%clk 0:00:12]} 32. gxh5 {[%clk 0:00:17]}  gxh5 {[%clk 0:00:12]} 33. f5 {[%clk 0:00:13]}  Kh7 {[%clk 0:00:12]} 34. Be7 {[%clk 0:00:09]}  Rg8 {[%clk 0:00:10]} 35. Bg5 {[%clk 0:00:09]}  Rc8 {[%clk 0:00:06]} 36. e6 {[%clk 0:00:07]}  fxe6 {[%clk 0:00:06]} 37. fxe6 {[%clk 0:00:07]}  Re8 {[%clk 0:00:06]} 38. e7 {[%clk 0:00:07]}  Kg6 {[%clk 0:00:06]} 39. Ke5 {[%clk 0:00:07]}  Kg7 {[%clk 0:00:05]} 40. Ke6 {[%clk 0:00:07]}  Bh1 {[%clk 0:00:03]} 41. Kd7 {[%clk 0:00:05]}  Rxe7+ {[%clk 0:00:03]} 42. Kxe7 {[%clk 0:00:05]}  Kg6 {[%clk 0:00:03]} 43. Rf6+ {[%clk 0:00:05]}  Kg7 {[%clk 0:00:04]} 44. Rf7+ {[%clk 0:00:06]}  Kg6 {[%clk 0:00:04]} 45. Rf1 {[%clk 0:00:05]}  Kg7 {[%clk 0:00:05]} 46. Rxh1 {[%clk 0:00:05]}  Kg6 {[%clk 0:00:06]} 47. Rf1 {[%clk 0:00:06]}  d4 {[%clk 0:00:07]} 48. cxd4 {[%clk 0:00:06]}  Kg7 {[%clk 0:00:06]} 49. d5 {[%clk 0:00:06]}  Kg6 {[%clk 0:00:07]} 50. d6 {[%clk 0:00:07]}  Kg7 {[%clk 0:00:06]} 51. d7 {[%clk 0:00:08]}  Kg6 {[%clk 0:00:07]} 52. d8=Q {[%clk 0:00:09]}  Kg7 {[%clk 0:00:06]} 53. Qf8+ {[%clk 0:00:09]}  Kg6 {[%clk 0:00:07]} 54. Rf6+ {[%clk 0:00:09]}  Kh7 {[%clk 0:00:06]} 55. Rh6# {[%clk 0:00:10]} 1-0


[Site "https://www.chess.com"]

[Event "Titled Tuesday Blitz December 27 Late 2022"]
[White "Papayan, Oleg"]
[Black "Lobanov, Sergei"]
[WhiteFideId "4193911"]
[BlackFideId "24183750"]
[WhiteElo "2253"]
[BlackElo "2536"]
[Result "0-1"]
[Round "01"]
[TimeControl "180+2"]
[Date "2022.12.27"]
[WhiteClock "0:00:02"]
[BlackClock "0:00:24"]

1. e4 {[%clk 0:02:59]}  e5 {[%clk 0:02:39]} 2. Nf3 {[%clk 0:02:58]}  Nc6 {[%clk 0:02:39]} 3. Bb5 {[%clk 0:02:58]}  a6 {[%clk 0:02:40]} 4. Bxc6 {[%clk 0:02:58]}  dxc6 {[%clk 0:02:40]} 5. O-O {[%clk 0:02:58]}  Qf6 {[%clk 0:02:40]} 6. d4 {[%clk 0:02:58]}  exd4 {[%clk 0:02:41]} 7. Bg5 {[%clk 0:02:58]}  Qg6 {[%clk 0:02:41]} 8. Qxd4 {[%clk 0:02:32]}  Be7 {[%clk 0:02:41]} 9. Bxe7 {[%clk 0:02:11]}  Nxe7 {[%clk 0:02:42]} 10. Nc3 {[%clk 0:02:05]}  O-O {[%clk 0:02:29]} 11. Ne5 {[%clk 0:02:01]}  Qf6 {[%clk 0:02:18]} 12. Rad1 {[%clk 0:01:35]}  Ng6 {[%clk 0:01:39]} 13. Nxg6 {[%clk 0:01:31]}  hxg6 {[%clk 0:01:34]} 14. Qxf6 {[%clk 0:01:21]}  gxf6 {[%clk 0:01:35]} 15. f3 {[%clk 0:01:03]}  Be6 {[%clk 0:01:28]} 16. Rd2 {[%clk 0:00:59]}  Rfd8 {[%clk 0:01:27]} 17. Rfd1 {[%clk 0:00:59]}  Rxd2 {[%clk 0:01:28]} 18. Rxd2 {[%clk 0:00:59]}  Kf8 {[%clk 0:01:28]} 19. Kf2 {[%clk 0:01:00]}  Ke7 {[%clk 0:01:29]} 20. Ke3 {[%clk 0:01:01]}  b5 {[%clk 0:01:20]} 21. h4 {[%clk 0:00:47]}  a5 {[%clk 0:01:19]} 22. a3 {[%clk 0:00:32]}  Rb8 {[%clk 0:01:14]} 23. b4 {[%clk 0:00:21]}  Ra8 {[%clk 0:01:03]} 24. Kd4 {[%clk 0:00:16]}  Rd8+ {[%clk 0:00:44]} 25. Ke3 {[%clk 0:00:16]}  Rh8 {[%clk 0:00:44]} 26. g3 {[%clk 0:00:16]}  axb4 {[%clk 0:00:37]} 27. axb4 {[%clk 0:00:16]}  Ra8 {[%clk 0:00:38]} 28. Kd4 {[%clk 0:00:16]}  Bc4 {[%clk 0:00:32]} 29. g4 {[%clk 0:00:14]}  Ra1 {[%clk 0:00:30]} 30. Kc5 {[%clk 0:00:14]}  Ra3 {[%clk 0:00:30]} 31. Ne2 {[%clk 0:00:06]}  Rxf3 {[%clk 0:00:29]} 32. Nd4 {[%clk 0:00:06]}  Rf4 {[%clk 0:00:28]} 33. Nxc6+ {[%clk 0:00:07]}  Kf8 {[%clk 0:00:28]} 34. Rd8+ {[%clk 0:00:05]}  Kg7 {[%clk 0:00:28]} 35. Na5 {[%clk 0:00:06]}  Rxe4 {[%clk 0:00:26]} 36. Nxc4 {[%clk 0:00:05]}  Rxc4+ {[%clk 0:00:26]} 37. Kxb5 {[%clk 0:00:06]}  Rxc2 {[%clk 0:00:26]} 38. Rc8 {[%clk 0:00:06]}  f5 {[%clk 0:00:24]} 39. gxf5 {[%clk 0:00:06]}  gxf5 {[%clk 0:00:25]} 40. Ka6 {[%clk 0:00:07]}  f4 {[%clk 0:00:25]} 41. b5 {[%clk 0:00:07]}  f3 {[%clk 0:00:25]} 42. b6 {[%clk 0:00:08]}  Ra2+ {[%clk 0:00:26]} 43. Kb7 {[%clk 0:00:08]}  cxb6 {[%clk 0:00:22]} 44. Kxb6 {[%clk 0:00:08]}  f2 {[%clk 0:00:22]} 45. Rc1 {[%clk 0:00:08]}  Kf6 {[%clk 0:00:21]} 46. Rf1 {[%clk 0:00:05]}  Kf5 {[%clk 0:00:22]} 47. Kc5 {[%clk 0:00:04]}  Kg4 {[%clk 0:00:23]} 48. Kd4 {[%clk 0:00:04]}  Kxh4 {[%clk 0:00:23]} 49. Ke3 {[%clk 0:00:04]}  Kg3 {[%clk 0:00:23]} 50. Ke4 {[%clk 0:00:02]}  Kg2 {[%clk 0:00:24]} 0-1


[Site "https://www.chess.com"]

[Event "Titled Tuesday Blitz December 27 Late 2022"]
[White "Peatman, Carter"]
[Black "Holt, Conrad"]
[WhiteFideId "2096480"]
[BlackFideId "2034387"]
[WhiteElo "1998"]
[BlackElo "2540"]
[Result "0-1"]
[Round "01"]
[TimeControl "180+2"]
[Date "2022.12.27"]
[WhiteClock "0:00:05"]
[BlackClock "0:00:15"]

1. d4 {[%clk 0:02:49]}  d5 {[%clk 0:02:56]} 2. Bf4 {[%clk 0:02:49]}  c5 {[%clk 0:02:55]} 3. e3 {[%clk 0:02:47]}  Nc6 {[%clk 0:02:55]} 4. c3 {[%clk 0:02:45]}  e6 {[%clk 0:02:52]} 5. Nd2 {[%clk 0:02:44]}  Bd6 {[%clk 0:02:51]} 6. Bg3 {[%clk 0:02:44]}  e5 {[%clk 0:02:42]} 7. dxe5 {[%clk 0:02:39]}  Bxe5 {[%clk 0:02:41]} 8. Ngf3 {[%clk 0:02:35]}  Bxg3 {[%clk 0:02:41]} 9. hxg3 {[%clk 0:02:35]}  Nf6 {[%clk 0:02:41]} 10. Bd3 {[%clk 0:02:33]}  Qe7 {[%clk 0:02:40]} 11. Qe2 {[%clk 0:02:30]}  Bg4 {[%clk 0:02:39]} 12. Bb5 {[%clk 0:02:24]}  a6 {[%clk 0:02:31]} 13. Ba4 {[%clk 0:02:21]}  b5 {[%clk 0:02:29]} 14. Bc2 {[%clk 0:02:21]}  d4 {[%clk 0:02:25]} 15. cxd4 {[%clk 0:02:15]}  cxd4 {[%clk 0:02:25]} 16. e4 {[%clk 0:02:15]}  O-O {[%clk 0:01:57]} 17. Bd3 {[%clk 0:02:13]}  Rfe8 {[%clk 0:01:53]} 18. O-O {[%clk 0:02:12]}  Qb4 {[%clk 0:01:51]} 19. Rab1 {[%clk 0:02:05]}  Rad8 {[%clk 0:01:44]} 20. a3 {[%clk 0:02:04]}  Qd6 {[%clk 0:01:44]} 21. Rfc1 {[%clk 0:01:59]}  Ne5 {[%clk 0:01:43]} 22. Qf1 {[%clk 0:01:46]}  Nfd7 {[%clk 0:01:40]} 23. a4 {[%clk 0:01:34]}  Nxd3 {[%clk 0:01:34]} 24. Qxd3 {[%clk 0:01:33]}  Nc5 {[%clk 0:01:33]} 25. Qa3 {[%clk 0:00:36]}  Nxa4 {[%clk 0:01:22]} 26. Qxd6 {[%clk 0:00:29]}  Rxd6 {[%clk 0:01:22]} 27. Nb3 {[%clk 0:00:25]}  Bxf3 {[%clk 0:01:13]} 28. gxf3 {[%clk 0:00:25]}  g6 {[%clk 0:01:13]} 29. Nc5 {[%clk 0:00:17]}  d3 {[%clk 0:01:01]} 30. Nxa4 {[%clk 0:00:16]}  bxa4 {[%clk 0:01:01]} 31. Rd1 {[%clk 0:00:16]}  Rb8 {[%clk 0:00:59]} 32. Ra1 {[%clk 0:00:15]}  Rxb2 {[%clk 0:00:58]} 33. Rxa4 {[%clk 0:00:14]}  Rc6 {[%clk 0:00:27]} 34. Rxd3 {[%clk 0:00:05]}  Rcc2 {[%clk 0:00:23]} 35. Rxa6 {[%clk 0:00:04]}  Rxf2 {[%clk 0:00:23]} 36. g4 {[%clk 0:00:04]}  Rfc2 {[%clk 0:00:17]} 37. Rad6 {[%clk 0:00:04]}  g5 {[%clk 0:00:15]} 38. Rd1 {[%clk 0:00:04]}  Kg7 {[%clk 0:00:15]} 39. R6d5 {[%clk 0:00:04]}  h6 {[%clk 0:00:15]} 40. R1d3 {[%clk 0:00:05]}  Rg2+ {[%clk 0:00:14]} 41. Kf1 {[%clk 0:00:05]}  Rh2 {[%clk 0:00:15]} 42. Kg1 {[%clk 0:00:03]}  Rbg2+ {[%clk 0:00:15]} 43. Kf1 {[%clk 0:00:03]}  Ra2 {[%clk 0:00:16]} 44. Kg1 {[%clk 0:00:04]}  Rhb2 {[%clk 0:00:16]} 45. Rd1 {[%clk 0:00:03]}  Rb3 {[%clk 0:00:15]} 46. Rf5 {[%clk 0:00:03]}  Rbb2 {[%clk 0:00:11]} 47. Rc1 {[%clk 0:00:03]}  Rg2+ {[%clk 0:00:06]} 48. Kf1 {[%clk 0:00:04]}  Kg6 {[%clk 0:00:06]} 49. Rb1 {[%clk 0:00:03]}  Rh2 {[%clk 0:00:06]} 50. Kg1 {[%clk 0:00:03]}  h5 {[%clk 0:00:05]} 51. gxh5+ {[%clk 0:00:03]}  Rxh5 {[%clk 0:00:04]} 52. Rf1 {[%clk 0:00:03]}  Rh3 {[%clk 0:00:03]} 53. Rb1 {[%clk 0:00:04]}  Rg3+ {[%clk 0:00:03]} 54. Kf1 {[%clk 0:00:04]}  Rh3 {[%clk 0:00:03]} 55. Kg1 {[%clk 0:00:04]}  f6 {[%clk 0:00:03]} 56. Rc5 {[%clk 0:00:03]}  Rg3+ {[%clk 0:00:03]} 57. Kf1 {[%clk 0:00:03]}  Rxf3+ {[%clk 0:00:04]} 58. Ke1 {[%clk 0:00:03]}  Re3+ {[%clk 0:00:04]} 59. Kf1 {[%clk 0:00:04]}  Rxe4 {[%clk 0:00:04]} 60. Rc3 {[%clk 0:00:04]}  Rf4+ {[%clk 0:00:05]} 61. Kg1 {[%clk 0:00:04]}  Raa4 {[%clk 0:00:06]} 62. Re1 {[%clk 0:00:04]}  Rg4+ {[%clk 0:00:07]} 63. Kf1 {[%clk 0:00:05]}  Raf4+ {[%clk 0:00:07]} 64. Ke2 {[%clk 0:00:06]}  Re4+ {[%clk 0:00:08]} 65. Kd2 {[%clk 0:00:06]}  Rxe1 {[%clk 0:00:09]} 66. Kxe1 {[%clk 0:00:07]}  Rf4 {[%clk 0:00:10]} 67. Ke2 {[%clk 0:00:07]}  Kh5 {[%clk 0:00:10]} 68. Rg3 {[%clk 0:00:07]}  Kh4 {[%clk 0:00:11]} 69. Rg1 {[%clk 0:00:07]}  g4 {[%clk 0:00:11]} 70. Rh1+ {[%clk 0:00:08]}  Kg3 {[%clk 0:00:11]} 71. Ke3 {[%clk 0:00:08]}  Rf3+ {[%clk 0:00:12]} 72. Ke2 {[%clk 0:00:07]}  f5 {[%clk 0:00:12]} 73. Rg1+ {[%clk 0:00:07]}  Kh2 {[%clk 0:00:13]} 74. Rc1 {[%clk 0:00:06]}  Kg2 {[%clk 0:00:13]} 75. Rc6 {[%clk 0:00:05]}  f4 {[%clk 0:00:13]} 76. Rh6 {[%clk 0:00:06]}  Rf2+ {[%clk 0:00:14]} 77. Ke1 {[%clk 0:00:06]}  g3 {[%clk 0:00:15]} 78. Rg6 {[%clk 0:00:06]}  f3 {[%clk 0:00:15]} 79. Rxg3+ {[%clk 0:00:05]}  Kxg3 {[%clk 0:00:15]} 0-1


[Site "https://www.chess.com"]

[Event "Titled Tuesday Blitz December 27 Late 2022"]
[White "Pinheiro, Iung Alicio de O."]
[Black "Liu, Casper"]
[WhiteFideId "2104350"]
[BlackFideId "1454153"]
[WhiteElo "2306"]
[BlackElo "2278"]
[Result "0-1"]
[Round "01"]
[TimeControl "180+2"]
[Date "2022.12.27"]
[WhiteClock "0:00:02"]
[BlackClock "0:01:25"]

1. e4 {[%clk 0:02:59]}  d5 {[%clk 0:02:56]} 2. exd5 {[%clk 0:02:58]}  Nf6 {[%clk 0:02:56]} 3. d4 {[%clk 0:02:46]}  Nxd5 {[%clk 0:02:55]} 4. Nf3 {[%clk 0:02:43]}  Nf6 {[%clk 0:02:56]} 5. c4 {[%clk 0:02:27]}  Bg4 {[%clk 0:02:55]} 6. Nbd2 {[%clk 0:02:10]}  e6 {[%clk 0:02:54]} 7. h3 {[%clk 0:02:10]}  Bh5 {[%clk 0:02:53]} 8. Qb3 {[%clk 0:02:11]}  Nc6 {[%clk 0:02:48]} 9. Qxb7 {[%clk 0:01:10]}  Nb4 {[%clk 0:02:44]} 10. Qb5+ {[%clk 0:01:10]}  c6 {[%clk 0:02:44]} 11. Qa4 {[%clk 0:01:10]}  Bg6 {[%clk 0:02:25]} 12. Ne5 {[%clk 0:00:58]}  Nc2+ {[%clk 0:02:20]} 13. Kd1 {[%clk 0:00:54]}  Nxa1 {[%clk 0:02:21]} 14. Qxc6+ {[%clk 0:00:54]}  Nd7 {[%clk 0:01:55]} 15. Nxd7 {[%clk 0:00:51]}  Rc8 {[%clk 0:01:56]} 16. Nf6+ {[%clk 0:00:29]}  Ke7 {[%clk 0:01:56]} 17. Qb7+ {[%clk 0:00:10]}  Kxf6 {[%clk 0:01:55]} 18. b3 {[%clk 0:00:05]}  Nc2 {[%clk 0:01:40]} 19. Bb2 {[%clk 0:00:05]}  Ba3 {[%clk 0:01:29]} 20. Bc3 {[%clk 0:00:04]}  Nxd4 {[%clk 0:01:24]} 21. Nf3 {[%clk 0:00:02]}  e5 {[%clk 0:01:25]} 0-1


[Site "https://www.chess.com"]

[Event "Titled Tuesday Blitz December 27 Late 2022"]
[White "Poliakova, Varvara"]
[Black "Bach, Matthias"]
[WhiteFideId "13518313"]
[BlackFideId "4603168"]
[WhiteElo "2010"]
[BlackElo "2214"]
[Result "0-1"]
[Round "01"]
[TimeControl "180+2"]
[Date "2022.12.27"]
[WhiteClock "0:00:06"]
[BlackClock "0:00:34"]

1. e4 {[%clk 0:02:58]}  e5 {[%clk 0:02:59]} 2. Nf3 {[%clk 0:02:57]}  Nc6 {[%clk 0:03:00]} 3. Bc4 {[%clk 0:02:57]}  Nf6 {[%clk 0:02:59]} 4. d3 {[%clk 0:02:58]}  d6 {[%clk 0:02:59]} 5. c3 {[%clk 0:02:57]}  Be6 {[%clk 0:02:59]} 6. Nbd2 {[%clk 0:02:57]}  Bxc4 {[%clk 0:02:56]} 7. Nxc4 {[%clk 0:02:58]}  Be7 {[%clk 0:02:56]} 8. Ne3 {[%clk 0:02:58]}  g6 {[%clk 0:02:56]} 9. Nd5 {[%clk 0:02:55]}  Nxd5 {[%clk 0:02:55]} 10. exd5 {[%clk 0:02:55]}  Nb8 {[%clk 0:02:54]} 11. Bh6 {[%clk 0:02:53]}  Bf8 {[%clk 0:02:54]} 12. Qd2 {[%clk 0:02:52]}  Nd7 {[%clk 0:02:52]} 13. O-O-O {[%clk 0:02:47]}  c5 {[%clk 0:02:46]} 14. d4 {[%clk 0:02:41]}  Qa5 {[%clk 0:02:42]} 15. dxe5 {[%clk 0:02:35]}  dxe5 {[%clk 0:02:34]} 16. Bxf8 {[%clk 0:02:32]}  Rxf8 {[%clk 0:02:33]} 17. Rhe1 {[%clk 0:02:29]}  O-O-O {[%clk 0:02:31]} 18. Kb1 {[%clk 0:02:27]}  f6 {[%clk 0:02:29]} 19. c4 {[%clk 0:02:23]}  Qxd2 {[%clk 0:02:27]} 20. Nxd2 {[%clk 0:02:23]}  f5 {[%clk 0:02:18]} 21. Nf3 {[%clk 0:02:23]}  e4 {[%clk 0:02:13]} 22. Ng5 {[%clk 0:02:22]}  Rde8 {[%clk 0:02:07]} 23. Ne6 {[%clk 0:02:22]}  Rf7 {[%clk 0:02:02]} 24. f3 {[%clk 0:02:22]}  exf3 {[%clk 0:01:58]} 25. gxf3 {[%clk 0:02:23]}  b6 {[%clk 0:01:58]} 26. h4 {[%clk 0:02:19]}  Rfe7 {[%clk 0:01:58]} 27. Rg1 {[%clk 0:02:19]}  Nf8 {[%clk 0:01:56]} 28. Nf4 {[%clk 0:02:11]}  Re3 {[%clk 0:01:52]} 29. Rg3 {[%clk 0:02:10]}  Kd7 {[%clk 0:01:48]} 30. h5 {[%clk 0:02:08]}  g5 {[%clk 0:01:40]} 31. Rxg5 {[%clk 0:02:06]}  Rxf3 {[%clk 0:01:40]} 32. Rxf5 {[%clk 0:02:04]}  Re4 {[%clk 0:01:30]} 33. Rxf8 {[%clk 0:01:59]}  Rexf4 {[%clk 0:01:29]} 34. Ra8 {[%clk 0:01:56]}  Rxc4 {[%clk 0:01:27]} 35. Rxa7+ {[%clk 0:01:56]}  Kd6 {[%clk 0:01:25]} 36. Rxh7 {[%clk 0:01:55]}  Rf2 {[%clk 0:01:23]} 37. Rh6+ {[%clk 0:01:36]}  Kc7 {[%clk 0:01:19]} 38. Rg1 {[%clk 0:01:34]}  Kb7 {[%clk 0:01:09]} 39. Rc1 {[%clk 0:00:47]}  Rd4 {[%clk 0:01:00]} 40. Rg1 {[%clk 0:00:20]}  Rdd2 {[%clk 0:00:58]} 41. Rhg6 {[%clk 0:00:21]}  Rxb2+ {[%clk 0:00:57]} 42. Kc1 {[%clk 0:00:21]}  Rxa2 {[%clk 0:00:56]} 43. Kb1 {[%clk 0:00:21]}  Rfb2+ {[%clk 0:00:55]} 44. Kc1 {[%clk 0:00:22]}  Rh2 {[%clk 0:00:54]} 45. Kb1 {[%clk 0:00:22]}  Rad2 {[%clk 0:00:48]} 46. d6 {[%clk 0:00:20]}  Rxh5 {[%clk 0:00:47]} 47. Rf1 {[%clk 0:00:13]}  Rhd5 {[%clk 0:00:45]} 48. Rf7+ {[%clk 0:00:14]}  Ka6 {[%clk 0:00:45]} 49. Rff6 {[%clk 0:00:12]}  Ka5 {[%clk 0:00:42]} 50. d7 {[%clk 0:00:12]}  b5 {[%clk 0:00:35]} 51. Ra6+ {[%clk 0:00:08]}  Kb4 {[%clk 0:00:35]} 52. Rg4+ {[%clk 0:00:08]}  c4 {[%clk 0:00:35]} 53. Ra7 {[%clk 0:00:06]}  Rd1+ {[%clk 0:00:34]} 0-1


[Site "https://www.chess.com"]

[Event "Titled Tuesday Blitz December 27 Late 2022"]
[White "Preotu, Razvan"]
[Black "Melikhov, Evgeny V."]
[WhiteFideId "2613280"]
[BlackFideId "4122046"]
[WhiteElo "2475"]
[BlackElo "2269"]
[Result "1-0"]
[Round "01"]
[TimeControl "180+2"]
[Date "2022.12.27"]
[WhiteClock "0:01:03"]
[BlackClock "0:00:02"]

1. e4 {[%clk 0:03:00]}  e5 {[%clk 0:02:57]} 2. Nf3 {[%clk 0:03:00]}  Nc6 {[%clk 0:02:57]} 3. Bc4 {[%clk 0:03:01]}  Nf6 {[%clk 0:02:56]} 4. d3 {[%clk 0:03:01]}  Be7 {[%clk 0:02:54]} 5. O-O {[%clk 0:03:01]}  O-O {[%clk 0:02:54]} 6. Re1 {[%clk 0:03:01]}  d6 {[%clk 0:02:52]} 7. a4 {[%clk 0:03:02]}  Be6 {[%clk 0:02:50]} 8. Nbd2 {[%clk 0:03:02]}  Qd7 {[%clk 0:02:48]} 9. a5 {[%clk 0:03:02]}  Nd4 {[%clk 0:02:38]} 10. c3 {[%clk 0:02:43]}  Nxf3+ {[%clk 0:02:23]} 11. Nxf3 {[%clk 0:02:39]}  b5 {[%clk 0:02:16]} 12. Bxe6 {[%clk 0:02:35]}  Qxe6 {[%clk 0:02:13]} 13. d4 {[%clk 0:02:33]}  a6 {[%clk 0:01:56]} 14. Bg5 {[%clk 0:02:23]}  h6 {[%clk 0:01:52]} 15. Bxf6 {[%clk 0:02:13]}  Bxf6 {[%clk 0:01:51]} 16. d5 {[%clk 0:02:11]}  Qd7 {[%clk 0:01:46]} 17. b4 {[%clk 0:02:10]}  g6 {[%clk 0:01:41]} 18. Qd3 {[%clk 0:02:10]}  Bg7 {[%clk 0:01:40]} 19. c4 {[%clk 0:02:09]}  Rab8 {[%clk 0:01:34]} 20. c5 {[%clk 0:01:58]}  f5 {[%clk 0:01:32]} 21. Rac1 {[%clk 0:01:54]}  f4 {[%clk 0:01:03]} 22. cxd6 {[%clk 0:01:48]}  cxd6 {[%clk 0:01:02]} 23. Rc6 {[%clk 0:01:48]}  g5 {[%clk 0:01:02]} 24. Rec1 {[%clk 0:01:46]}  g4 {[%clk 0:01:01]} 25. Nh4 {[%clk 0:01:39]}  f3 {[%clk 0:00:50]} 26. Ng6 {[%clk 0:01:21]}  Rf7 {[%clk 0:00:30]} 27. Rc7 {[%clk 0:01:01]}  Qxc7 {[%clk 0:00:20]} 28. Rxc7 {[%clk 0:01:02]}  Rxc7 {[%clk 0:00:20]} 29. gxf3 {[%clk 0:01:02]}  gxf3 {[%clk 0:00:18]} 30. Qxf3 {[%clk 0:01:03]}  Rf7 {[%clk 0:00:02]} 31. Qg4 {[%clk 0:01:03]} 1-0


[Site "https://www.chess.com"]

[Event "Titled Tuesday Blitz December 27 Late 2022"]
[White "Rangel, Daniel"]
[Black "Xiong, Jeffery"]
[WhiteFideId "2124475"]
[BlackFideId "2047640"]
[WhiteElo "2207"]
[BlackElo "2692"]
[Result "0-1"]
[Round "01"]
[TimeControl "180+2"]
[Date "2022.12.27"]
[WhiteClock "0:00:01"]
[BlackClock "0:00:57"]

1. c4 {[%clk 0:03:00]}  g6 {[%clk 0:02:58]} 2. g3 {[%clk 0:03:00]}  Bg7 {[%clk 0:02:58]} 3. Bg2 {[%clk 0:02:56]}  Nc6 {[%clk 0:02:58]} 4. Nc3 {[%clk 0:02:56]}  d6 {[%clk 0:02:58]} 5. e3 {[%clk 0:02:55]}  h5 {[%clk 0:02:56]} 6. h4 {[%clk 0:02:53]}  a6 {[%clk 0:02:55]} 7. Nge2 {[%clk 0:02:53]}  Rb8 {[%clk 0:02:54]} 8. b3 {[%clk 0:02:48]}  Bd7 {[%clk 0:02:53]} 9. Bb2 {[%clk 0:02:45]}  b5 {[%clk 0:02:53]} 10. d3 {[%clk 0:02:36]}  Ne5 {[%clk 0:02:43]} 11. Qd2 {[%clk 0:02:25]}  Bg4 {[%clk 0:02:36]} 12. Nd4 {[%clk 0:02:11]}  c5 {[%clk 0:02:13]} 13. Nc6 {[%clk 0:02:05]}  Nxc6 {[%clk 0:02:14]} 14. Bxc6+ {[%clk 0:02:06]}  Kf8 {[%clk 0:02:12]} 15. Bg2 {[%clk 0:01:38]}  Nf6 {[%clk 0:02:07]} 16. O-O {[%clk 0:01:35]}  Kg8 {[%clk 0:02:07]} 17. Nd5 {[%clk 0:01:12]}  Nxd5 {[%clk 0:01:54]} 18. cxd5 {[%clk 0:00:44]}  e5 {[%clk 0:01:53]} 19. dxe6 {[%clk 0:00:42]}  Bxe6 {[%clk 0:01:53]} 20. Bxg7 {[%clk 0:00:42]}  Kxg7 {[%clk 0:01:54]} 21. Qc3+ {[%clk 0:00:37]}  Qf6 {[%clk 0:01:54]} 22. Qxf6+ {[%clk 0:00:37]}  Kxf6 {[%clk 0:01:55]} 23. Rfc1 {[%clk 0:00:33]}  Rhc8 {[%clk 0:01:54]} 24. Kf1 {[%clk 0:00:33]}  b4 {[%clk 0:01:49]} 25. Ke2 {[%clk 0:00:33]}  a5 {[%clk 0:01:50]} 26. Kd2 {[%clk 0:00:22]}  a4 {[%clk 0:01:28]} 27. bxa4 {[%clk 0:00:20]}  d5 {[%clk 0:01:28]} 28. Rab1 {[%clk 0:00:15]}  c4 {[%clk 0:01:28]} 29. dxc4 {[%clk 0:00:13]}  dxc4 {[%clk 0:01:29]} 30. a5 {[%clk 0:00:14]}  c3+ {[%clk 0:01:27]} 31. Ke1 {[%clk 0:00:09]}  Bxa2 {[%clk 0:01:26]} 32. Ra1 {[%clk 0:00:06]}  b3 {[%clk 0:01:26]} 33. a6 {[%clk 0:00:06]}  b2 {[%clk 0:01:09]} 34. a7 {[%clk 0:00:06]}  Ra8 {[%clk 0:01:09]} 35. Bxa8 {[%clk 0:00:05]}  Rxa8 {[%clk 0:01:10]} 36. Kd1 {[%clk 0:00:03]}  Rxa7 {[%clk 0:01:01]} 37. Kc2 {[%clk 0:00:01]}  Bb3+ {[%clk 0:01:01]} 38. Kxb3 {[%clk 0:00:01]}  Rxa1 {[%clk 0:00:57]} 0-1


[Site "https://www.chess.com"]

[Event "Titled Tuesday Blitz December 27 Late 2022"]
[White "Rosen, Eric"]
[Black "Doluhanova, Evgeniya"]
[WhiteFideId "2032562"]
[BlackFideId "14112035"]
[WhiteElo "2349"]
[BlackElo "2275"]
[Result "1-0"]
[Round "01"]
[TimeControl "180+2"]
[Date "2022.12.27"]
[WhiteClock "0:01:01"]
[BlackClock "0:00:46"]

1. d4 {[%clk 0:02:59]}  Nf6 {[%clk 0:02:50]} 2. Bf4 {[%clk 0:02:59]}  e6 {[%clk 0:02:49]} 3. e3 {[%clk 0:02:59]}  d5 {[%clk 0:02:49]} 4. Nf3 {[%clk 0:02:59]}  Bd6 {[%clk 0:02:48]} 5. Ne5 {[%clk 0:02:59]}  Nbd7 {[%clk 0:02:47]} 6. Nd2 {[%clk 0:02:59]}  O-O {[%clk 0:02:46]} 7. Bd3 {[%clk 0:02:57]}  Qe7 {[%clk 0:02:45]} 8. c3 {[%clk 0:02:56]}  Ne8 {[%clk 0:02:43]} 9. Qh5 {[%clk 0:02:40]}  g6 {[%clk 0:02:40]} 10. Qh6 {[%clk 0:02:40]}  f6 {[%clk 0:02:32]} 11. Nxd7 {[%clk 0:02:40]}  Bxd7 {[%clk 0:02:31]} 12. O-O-O {[%clk 0:02:24]}  Qg7 {[%clk 0:02:23]} 13. Qxg7+ {[%clk 0:02:11]}  Kxg7 {[%clk 0:02:22]} 14. Bg3 {[%clk 0:02:08]}  Rc8 {[%clk 0:02:15]} 15. e4 {[%clk 0:02:07]}  dxe4 {[%clk 0:01:40]} 16. Nxe4 {[%clk 0:02:07]}  Be7 {[%clk 0:01:40]} 17. Rhe1 {[%clk 0:02:02]}  b6 {[%clk 0:01:39]} 18. f3 {[%clk 0:01:57]}  Nd6 {[%clk 0:01:38]} 19. Nd2 {[%clk 0:01:52]}  Rfd8 {[%clk 0:01:34]} 20. h4 {[%clk 0:01:49]}  h5 {[%clk 0:01:29]} 21. d5 {[%clk 0:01:45]}  e5 {[%clk 0:01:22]} 22. f4 {[%clk 0:01:46]}  Bg4 {[%clk 0:01:11]} 23. fxe5 {[%clk 0:01:38]}  fxe5 {[%clk 0:01:05]} 24. Bxe5+ {[%clk 0:01:34]}  Bf6 {[%clk 0:01:05]} 25. Bxf6+ {[%clk 0:01:32]}  Kxf6 {[%clk 0:01:06]} 26. Rf1+ {[%clk 0:01:32]}  Kg7 {[%clk 0:01:06]} 27. Rde1 {[%clk 0:01:31]}  Re8 {[%clk 0:01:05]} 28. Nb3 {[%clk 0:01:22]}  Nf5 {[%clk 0:00:59]} 29. Bxf5 {[%clk 0:01:20]}  Bxf5 {[%clk 0:00:58]} 30. Nd4 {[%clk 0:01:20]}  Bd7 {[%clk 0:00:55]} 31. Kd2 {[%clk 0:01:15]}  Kh6 {[%clk 0:00:50]} 32. Rxe8 {[%clk 0:01:12]}  Rxe8 {[%clk 0:00:50]} 33. Rf7 {[%clk 0:01:13]}  Rd8 {[%clk 0:00:47]} 34. c4 {[%clk 0:01:04]}  a5 {[%clk 0:00:46]} 35. Nf3 {[%clk 0:01:01]} 1-0


[Site "https://www.chess.com"]